bitfinex/quotes_BTCUSD_20250303
["timestamp","ask_amount","ask_price","bid_price","bid_amount"]
[1741010356068,1e-06,93779.0,93769.0,0.1]
[1741010356266,0.0021704,93798.0,93779.0,0.3]
[1741010356510,0.0021704,93798.0,93796.0,0.459921]
[1741010356917,0.0021704,93798.0,93796.0,0.47446185]
[1741010357317,0.04716157,93797.0,93796.0,0.47446185]
[1741010357517,0.04716157,93797.0,93796.0,0.47458183]
[1741010358096,7.71e-05,93797.0,93796.0,0.47758183]
[1741010358672,7.71e-05,93797.0,93796.0,1.55350648]
[1741010358889,0.0001704,93808.0,93801.0,0.3]
[1741010359067,0.0001704,93808.0,93807.0,0.17444285]
[1741010359367,0.01672007,93834.0,93809.0,0.1]
[1741010359567,0.01672007,93834.0,93818.0,0.47442485]
[1741010359706,0.01672007,93834.0,93818.0,0.55194485]
[1741010360676,0.04699117,93822.0,93818.0,0.459884]
[1741010360907,0.04699117,93820.0,93818.0,0.459884]
[1741010361056,0.17521816,93819.0,93818.0,0.159884]
[1741010361257,0.04699117,93808.0,93807.0,0.003]
[1741010361625,0.05323954,93808.0,93807.0,0.162902]
[1741010361830,0.0795,93819.0,93807.0,0.003]
[1741010362071,0.0024,93819.0,93818.0,0.165884]
[1741010362487,0.04939117,93819.0,93818.0,0.159884]
[1741010362815,0.04939117,93819.0,93818.0,0.163884]
[1741010364019,0.0024,93819.0,93818.0,0.163884]
[1741010364145,0.0024,93819.0,93818.0,0.17842485]
[1741010364578,0.0024,93819.0,93818.0,0.17442485]
[1741010364782,0.0024,93819.0,93818.0,0.17742485]
[1741010365644,0.0025701,93819.0,93818.0,0.17742485]
[1741010365843,0.0025701,93819.0,93818.0,0.18342485]
[1741010366078,0.0025701,93819.0,93818.0,0.168884]
[1741010366538,0.0025701,93819.0,93818.0,0.159884]
[1741010367178,0.04699117,93815.0,93814.0,0.15989]
[1741010367317,0.04699117,93815.0,93814.0,0.45989]
[1741010368410,0.04699117,93815.0,93814.0,0.46189]
[1741010369084,0.0025701,93819.0,93818.0,0.159884]
[1741010371362,0.0025701,93819.0,93818.0,0.163884]
[1741010371564,0.0025701,93819.0,93818.0,0.159884]
[1741010371889,0.0025701,93819.0,93818.0,0.170884]
[1741010372258,0.04956127,93819.0,93818.0,0.459884]
[1741010372602,0.04956127,93819.0,93818.0,0.462884]
[1741010372890,0.04956127,93819.0,93818.0,0.467884]
[1741010373401,0.04956127,93819.0,93818.0,0.308]
[1741010373620,0.04956127,93819.0,93818.0,0.008]
[1741010373771,0.05585224,93819.0,93818.0,0.167884]
[1741010373980,0.04956127,93819.0,93818.0,0.164884]
[1741010374380,0.04956127,93819.0,93818.0,0.162884]
[1741010374603,0.04956127,93819.0,93818.0,0.166884]
[1741010375005,0.04956127,93819.0,93818.0,0.167884]
[1741010375166,0.04956127,93819.0,93818.0,0.160884]
[1741010375366,0.04956127,93819.0,93818.0,0.166884]
[1741010375614,0.04956127,93819.0,93818.0,0.170884]
[1741010375769,0.04956127,93819.0,93818.0,0.011]
[1741010375971,0.04956127,93819.0,93818.0,0.005]
[1741010376204,0.10369949,93819.0,93818.0,0.005]
[1741010376883,0.05629949,93819.0,93818.0,0.164884]
[1741010377107,0.05629949,93819.0,93818.0,0.159884]
[1741010377273,0.04956127,93819.0,93818.0,0.164884]
[1741010377593,0.04956127,93819.0,93818.0,0.166884]
[1741010377753,0.04956127,93819.0,93818.0,0.161884]
[1741010378091,0.0025701,93819.0,93818.0,0.165884]
[1741010378998,0.0025701,93819.0,93818.0,0.462884]
[1741010379142,0.0025701,93819.0,93818.0,0.465884]
[1741010379341,0.04956127,93819.0,93818.0,0.465884]
[1741010379541,0.0025701,93819.0,93818.0,0.465884]
[1741010379987,0.04956127,93819.0,93818.0,0.465884]
[1741010380400,0.04956127,93819.0,93818.0,0.462884]
[1741010380786,0.04956127,93819.0,93818.0,0.467884]
[1741010381759,0.04956127,93819.0,93818.0,0.462884]
[1741010381914,0.04956127,93819.0,93818.0,0.464884]
[1741010382467,0.04956127,93819.0,93818.0,0.462884]
[1741010383190,0.04956127,93819.0,93818.0,0.303]
[1741010383612,0.04956127,93819.0,93818.0,0.307]
[1741010384223,0.05630382,93819.0,93818.0,0.307]
[1741010384442,0.21618582,93819.0,93818.0,0.007]
[1741010384802,0.05630382,93819.0,93818.0,0.007]
[1741010385447,0.20944327,93819.0,93818.0,0.007]
[1741010385649,0.05630246,93819.0,93818.0,0.166884]
[1741010385968,0.04956127,93819.0,93818.0,0.166884]
[1741010386669,0.0025701,93819.0,93818.0,0.159884]
[1741010386972,0.0025701,93819.0,93818.0,0.163884]
[1741010387533,0.0025701,93819.0,93818.0,0.160884]
[1741010387751,0.0025701,93819.0,93818.0,0.163884]
[1741010388162,0.0025701,93819.0,93818.0,0.160884]
[1741010388527,0.0025701,93819.0,93818.0,0.166884]
[1741010389171,0.01428743,93821.0,93820.0,0.15988]
[1741010389346,0.01428743,93821.0,93820.0,0.45988]
[1741010389694,0.04699117,93827.0,93826.0,0.3]
[1741010389908,0.04699117,93827.0,93826.0,0.513158]
[1741010390941,0.04699117,93827.0,93826.0,0.51327798]
[1741010392169,0.0001704,93829.0,93828.0,0.459866]
[1741010392801,0.01688693,93829.0,93828.0,0.459866]
[1741010393244,0.0638781,93829.0,93828.0,0.459866]
[1741010394083,0.0638781,93829.0,93828.0,0.461866]
[1741010394614,0.1393781,93829.0,93828.0,0.002]
[1741010394823,0.1393781,93829.0,93826.0,0.00611998]
[1741010394824,0.04699117,93827.0,93826.0,0.00411998]
[1741010395113,0.04699117,93827.0,93826.0,0.00011998]
[1741010395337,0.05326634,93827.0,93826.0,0.00011998]
[1741010395696,0.05326634,93827.0,93826.0,0.15998998]
[1741010396219,0.04699117,93827.0,93826.0,0.15998998]
[1741010396398,0.05327551,93827.0,93826.0,0.15998998]
[1741010396601,0.05327551,93827.0,93826.0,0.16098998]
[1741010397018,0.05327551,93827.0,93826.0,0.16398998]
[1741010398061,0.0001704,93829.0,93826.0,0.16398998]
[1741010398181,0.04699117,93827.0,93826.0,0.16398998]
[1741010398384,0.0001704,93829.0,93826.0,0.16398998]
[1741010398385,0.04716157,93829.0,93828.0,0.159866]
[1741010399149,0.06387877,93829.0,93828.0,0.159866]
[1741010400132,0.06387877,93829.0,93828.0,0.161866]
[1741010400312,0.06387877,93829.0,93828.0,0.002]
[1741010400719,0.06387877,93829.0,93828.0,0.163866]
[1741010400920,0.06387877,93829.0,93828.0,0.165866]
[1741010401320,0.06387877,93829.0,93828.0,0.163866]
[1741010401777,0.06387877,93829.0,93828.0,0.166866]
[1741010401899,0.22374377,93829.0,93828.0,0.007]
[1741010402103,0.04716157,93829.0,93828.0,0.007]
[1741010402311,0.20702657,93829.0,93828.0,0.003]
[1741010402548,0.04716157,93829.0,93828.0,0.003]
[1741010402769,0.04716157,93829.0,93828.0,0.004]
[1741010402770,0.20702657,93829.0,93828.0,0.004]
[1741010402983,0.20702657,93829.0,93828.0,0.001]
[1741010403267,0.20685917,93827.0,93826.0,0.00011998]
[1741010403454,0.04699117,93827.0,93826.0,0.00011998]
[1741010403692,0.20685917,93827.0,93826.0,0.00011998]
[1741010403853,0.04699117,93827.0,93826.0,0.00011998]
[1741010404073,0.0001704,93829.0,93828.0,0.159866]
[1741010404074,0.04716157,93829.0,93828.0,0.159866]
[1741010404293,0.0001704,93829.0,93828.0,0.159866]
[1741010404490,0.04716157,93829.0,93828.0,0.159866]
[1741010405267,0.0001704,93829.0,93828.0,0.159866]
[1741010405471,0.04716157,93829.0,93828.0,0.159866]
[1741010405909,0.04716157,93829.0,93828.0,0.459866]
[1741010406468,0.04716157,93829.0,93828.0,0.462866]
[1741010406902,0.0001704,93829.0,93828.0,0.462866]
[1741010407054,0.0001704,93829.0,93828.0,0.48240685]
[1741010407461,4e-07,93829.0,93828.0,0.55400685]
[1741010407665,0.3241,93865.0,93838.0,0.47438985]
[1741010407666,4e-07,93839.0,93838.0,0.47438985]
[1741010407911,4e-07,93839.0,93838.0,0.52078985]
[1741010408523,4e-07,93840.0,93839.0,0.47438885]
[1741010409085,4e-07,93840.0,93839.0,0.459848]
[1741010409462,4e-07,93840.0,93829.0,0.0829]
[1741010409463,0.04699117,93829.0,93828.0,0.167866]
[1741010409570,0.04699117,93827.0,93826.0,0.15998998]
[1741010410202,0.06370796,93827.0,93826.0,0.15998998]
[1741010410409,0.22357596,93827.0,93826.0,0.00011998]
[1741010410814,0.54767596,93827.0,93826.0,0.00711998]
[1741010411309,0.62867596,93827.0,93826.0,0.01111998]
[1741010411529,0.67577596,93827.0,93826.0,0.01111998]
[1741010411904,0.87577596,93827.0,93826.0,0.01111998]
[1741010412058,0.70686617,93823.0,93822.0,0.09424982]
[1741010412257,1.90016617,93823.0,93822.0,0.09424982]
[1741010412869,2.23880702,93823.0,93822.0,0.09424982]
[1741010413080,2.23880702,93823.0,93796.0,0.0003402]
[1741010413081,0.46478817,93810.0,93796.0,0.0003402]
[1741010413250,0.78888817,93810.0,93796.0,0.0003402]
[1741010413780,0.88293213,93810.0,93796.0,0.0003402]
[1741010414301,0.88297213,93810.0,93796.0,0.0003402]
[1741010414505,0.88397213,93810.0,93796.0,0.0003402]
[1741010415310,1.19851298,93810.0,93796.0,0.0003402]
[1741010415499,1.18178902,93810.0,93796.0,0.0003402]
[1741010416319,1.18674902,93810.0,93796.0,0.0003402]
[1741010418307,1.19301309,93810.0,93796.0,0.0003402]
[1741010418544,1.04820701,93810.0,93796.0,0.0003402]
[1741010418691,1.19519818,93810.0,93796.0,0.0003402]
[1741010419447,0.89519818,93810.0,93796.0,0.0003402]
[1741010419703,0.71787818,93810.0,93796.0,0.0003402]
[1741010419876,0.61787818,93810.0,93796.0,0.0003402]
[1741010420296,0.61787818,93810.0,93797.0,0.159919]
[1741010420587,0.61787818,93810.0,93796.0,0.0003402]
[1741010421024,0.81787818,93810.0,93796.0,0.0003402]
[1741010422723,1.17811903,93810.0,93796.0,0.0003402]
[1741010422928,0.48951017,93797.0,93796.0,0.0003402]
[1741010423125,1.55501017,93797.0,93796.0,0.0003402]
[1741010423379,2.38614157,93797.0,93796.0,0.0003402]
[1741010423736,2.40286969,93797.0,93796.0,0.0003402]
[1741010423941,2.29395325,93797.0,93796.0,0.0003402]
[1741010424139,2.1794124,93797.0,93796.0,0.0003402]
[1741010424344,2.18253237,93797.0,93796.0,0.0003402]
[1741010424543,2.28253237,93797.0,93796.0,0.0003402]
[1741010424862,1.78253237,93797.0,93796.0,0.0003402]
[1741010425061,1.6581812,93797.0,93796.0,0.0003402]
[1741010425260,1.5785812,93797.0,93796.0,0.0003402]
[1741010425461,1.72557237,93797.0,93796.0,0.0003402]
[1741010425659,1.82257237,93797.0,93796.0,0.0003402]
[1741010425846,1.80984425,93797.0,93796.0,0.0003402]
[1741010426044,2.14163016,93797.0,93796.0,0.0003402]
[1741010426314,2.13463016,93797.0,93796.0,0.0003402]
[1741010426534,2.21523016,93797.0,93796.0,0.0003402]
[1741010426680,2.21323016,93797.0,93796.0,0.0003402]
[1741010426887,2.21123016,93797.0,93796.0,0.0003402]
[1741010427250,0.04699117,93743.0,93742.0,0.00201]
[1741010427528,0.05318901,93743.0,93742.0,0.00201]
[1741010427943,0.05318901,93743.0,93742.0,0.162023]
[1741010428314,0.04699117,93743.0,93742.0,0.00201]
[1741010428712,0.04711103,93743.0,93742.0,0.00201]
[1741010428953,0.07003508,93743.0,93742.0,0.162023]
[1741010429475,0.06384149,93743.0,93742.0,0.00201]
[1741010429763,0.07003523,93743.0,93742.0,0.00201]
[1741010430333,0.23104623,93743.0,93742.0,0.00201]
[1741010431117,0.07103523,93743.0,93742.0,0.00201]
[1741010431318,0.23104623,93743.0,93742.0,0.00201]
[1741010431525,0.55514623,93743.0,93742.0,0.00201]
[1741010431956,0.55414623,93743.0,93742.0,0.00201]
[1741010432161,0.39413523,93743.0,93742.0,0.00301]
[1741010432526,0.55418623,93743.0,93742.0,0.00301]
[1741010432703,0.55418623,93743.0,93742.0,0.00401]
[1741010433099,0.34718406,93743.0,93742.0,0.00401]
[1741010433701,0.55418623,93743.0,93742.0,0.00401]
[1741010433901,0.34718406,93743.0,93742.0,0.00401]
[1741010434312,0.39417523,93743.0,93742.0,0.00401]
[1741010434924,0.55418623,93743.0,93742.0,0.00401]
[1741010435659,0.61859532,93743.0,93742.0,0.00401]
[1741010435860,0.53745577,93743.0,93742.0,0.00401]
[1741010436259,0.53745577,93743.0,93742.0,0.004351]
[1741010436814,0.37744477,93743.0,93742.0,0.004351]
[1741010437020,0.3304536,93743.0,93742.0,0.164364]
[1741010437465,0.04715103,93743.0,93742.0,0.164364]
[1741010437664,0.00015986,93743.0,93742.0,0.164364]
[1741010438073,0.04715103,93743.0,93742.0,0.164364]
[1741010438267,0.00015986,93743.0,93742.0,0.164364]
[1741010438644,0.00015986,93743.0,93742.0,0.464364]
[1741010439081,0.00015986,93743.0,93742.0,0.47890485]
[1741010439410,0.00015986,93743.0,93742.0,0.55870485]
[1741010439563,0.04715103,93743.0,93742.0,0.55770485]
[1741010439756,0.04815103,93743.0,93742.0,0.464364]
[1741010439950,0.04815103,93743.0,93742.0,0.463364]
[1741010441012,0.00115986,93743.0,93742.0,0.47790485]
[1741010441212,0.04815103,93743.0,93742.0,0.47790485]
[1741010441461,0.04915103,93743.0,93742.0,0.466364]
[1741010441701,0.04815103,93743.0,93742.0,0.463364]
[1741010441903,0.04715103,93743.0,93742.0,0.462364]
[1741010442254,0.04815103,93743.0,93742.0,0.472364]
[1741010442787,0.04715103,93743.0,93742.0,0.007351]
[1741010442992,0.04715103,93743.0,93742.0,0.002351]
[1741010443192,0.05530818,93743.0,93742.0,0.013351]
[1741010443694,0.20816203,93743.0,93742.0,0.007351]
[1741010443893,0.20816203,93743.0,93742.0,0.010351]
[1741010444112,0.2143204,93743.0,93742.0,0.010351]
[1741010444509,0.5384204,93743.0,93742.0,0.010351]
[1741010445164,0.6182204,93743.0,93742.0,0.002351]
[1741010445587,0.6182204,93743.0,93742.0,0.004351]
[1741010445791,0.6182204,93743.0,93742.0,0.006351]
[1741010446206,0.6182204,93743.0,93742.0,0.004351]
[1741010446440,0.6182204,93743.0,93742.0,0.006351]
[1741010446675,0.68070634,93743.0,93742.0,0.006351]
[1741010446877,0.6182204,93743.0,93742.0,0.006351]
[1741010449233,0.7182204,93743.0,93742.0,0.006351]
[1741010449734,1.1655204,93743.0,93742.0,0.00014095]
[1741010451817,0.30702117,93732.0,93731.0,0.00201]
[1741010451993,0.38434117,93732.0,93731.0,0.00201]
[1741010452231,0.39047565,93732.0,93731.0,0.00201]
[1741010453082,0.39347565,93732.0,93731.0,0.00201]
[1741010453291,0.39747565,93732.0,93731.0,0.00201]
[1741010454317,0.09045448,93732.0,93731.0,0.00201]
[1741010454515,0.29747565,93732.0,93731.0,0.00201]
[1741010455411,0.29047565,93732.0,93731.0,0.00201]
[1741010455605,0.61457565,93732.0,93731.0,0.00201]
[1741010455802,0.61657565,93732.0,93731.0,0.00201]
[1741010456489,0.61957565,93732.0,93731.0,0.00201]
[1741010457863,0.62257565,93732.0,93731.0,0.00201]
[1741010458217,0.83149209,93732.0,93731.0,0.00201]
[1741010458615,0.72257565,93732.0,93731.0,0.00201]
[1741010459333,0.62257565,93732.0,93731.0,0.00201]
[1741010459603,0.62257565,93732.0,93731.0,0.002351]
[1741010463364,0.72257565,93732.0,93731.0,0.002351]
[1741010465354,0.06112565,93732.0,93731.0,0.002351]
[1741010466061,0.008,93732.0,93731.0,0.162383]
[1741010466273,0.05309847,93732.0,93731.0,0.162383]
[1741010466474,0.04999117,93732.0,93731.0,0.462383]
[1741010466886,0.04699117,93732.0,93731.0,0.302351]
[1741010467242,0.04699117,93732.0,93731.0,0.002351]
[1741010467447,0.21313034,93732.0,93731.0,0.002351]
[1741010468038,0.05610034,93732.0,93731.0,0.002351]
[1741010468902,0.21313034,93732.0,93731.0,0.002351]
[1741010469618,0.00610917,93732.0,93707.0,0.0819]
[1741010469833,0.3241,93732.0,93707.0,0.0819]
[1741010470063,0.00611144,93731.0,93707.0,0.0819]
[1741010470293,0.04699117,93715.0,93708.0,0.3]
[1741010470520,0.04699117,93715.0,93714.0,0.207661]
[1741010470753,0.37109117,93732.0,93731.0,0.160032]
[1741010470998,0.3241,93732.0,93731.0,0.160032]
[1741010471243,0.37720001,93732.0,93731.0,0.160032]
[1741010471702,0.37720001,93732.0,93731.0,0.159032]
[1741010471933,0.33020884,93732.0,93731.0,0.159032]
[1741010472167,0.33020884,93732.0,93731.0,0.206732]
[1741010472410,0.37720001,93732.0,93731.0,0.2070732]
[1741010472624,0.37720001,93732.0,93731.0,0.0480412]
[1741010472926,0.53723001,93732.0,93731.0,0.0003412]
[1741010474256,0.37720001,93732.0,93731.0,0.0003412]
[1741010474408,0.53723001,93732.0,93731.0,0.0003412]
[1741010475155,0.37720001,93732.0,93731.0,0.0003412]
[1741010475512,0.53723001,93732.0,93731.0,0.0003412]
[1741010475713,0.37720001,93732.0,93710.0,0.04771]
[1741010476037,0.04699117,93712.0,93710.0,0.04771]
[1741010476215,0.33020884,93732.0,93710.0,0.04771]
[1741010476216,0.04699117,93711.0,93710.0,0.04771]
[1741010476407,0.04699117,93711.0,93710.0,0.207778]
[1741010477113,0.04699117,93711.0,93710.0,0.04771]
[1741010477328,0.04711096,93711.0,93710.0,0.04771]
[1741010477570,0.04711096,93711.0,93710.0,0.261132]
[1741010477970,0.04711096,93711.0,93710.0,0.00201]
[1741010478397,0.05421925,93711.0,93710.0,0.00201]
[1741010478584,0.05421925,93711.0,93710.0,0.162078]
[1741010478745,0.05521925,93711.0,93710.0,0.162078]
[1741010479081,0.04811096,93711.0,93710.0,0.162078]
[1741010479287,0.04811096,93711.0,93710.0,0.00201]
[1741010479491,0.04911096,93711.0,93710.0,0.00201]
[1741010479785,0.04911096,93711.0,93710.0,0.162078]
[1741010481317,0.04911096,93711.0,93710.0,0.00201]
[1741010481862,0.0552209,93711.0,93710.0,0.00201]
[1741010484263,0.0552209,93711.0,93710.0,0.0023512]
[1741010484413,0.2152869,93711.0,93710.0,0.0023512]
[1741010485403,0.2142869,93711.0,93710.0,0.0023512]
[1741010485810,0.2132869,93711.0,93710.0,0.0023512]
[1741010487255,0.63380879,93711.0,93710.0,0.0023512]
[1741010487503,0.6200869,93711.0,93710.0,0.0023512]
[1741010487763,1.1200869,93711.0,93710.0,0.0023512]
[1741010488038,1.18232775,93711.0,93710.0,0.0023512]
[1741010489054,1.18232775,93711.0,93710.0,2e-07]
[1741010489309,1.29824419,93711.0,93710.0,2e-07]
[1741010490014,1.18932775,93711.0,93710.0,2e-07]
[1741010490133,0.94233658,93711.0,93710.0,2e-07]
[1741010490334,0.95733573,93711.0,93710.0,2e-07]
[1741010490545,0.79739573,93711.0,93710.0,2e-07]
[1741010490947,0.79039573,93711.0,93710.0,2e-07]
[1741010491192,0.80439573,93711.0,93710.0,2e-07]
[1741010491574,0.79739573,93711.0,93710.0,2e-07]
[1741010491772,0.79039573,93711.0,93710.0,2e-07]
[1741010492010,0.79539573,93711.0,93710.0,2e-07]
[1741010492188,0.79939573,93711.0,93710.0,2e-07]
[1741010493621,0.9463869,93711.0,93710.0,2e-07]
[1741010493772,0.79939573,93711.0,93710.0,2e-07]
[1741010493968,0.3863209,93711.0,93710.0,2e-07]
[1741010494213,0.33932973,93711.0,93710.0,2e-07]
[1741010495300,0.3863209,93711.0,93710.0,2e-07]
[1741010495499,0.33932973,93711.0,93710.0,2e-07]
[1741010495726,0.5463869,93711.0,93710.0,2e-07]
[1741010496220,0.3863209,93711.0,93710.0,2e-07]
[1741010496632,0.5465575,93711.0,93710.0,2e-07]
[1741010497235,0.64389625,93711.0,93710.0,2e-07]
[1741010497481,0.76109835,93711.0,93710.0,2e-07]
[1741010497682,1.14299835,93711.0,93710.0,2e-07]
[1741010498133,0.89956633,93711.0,93710.0,2e-07]
[1741010498338,1.0465575,93711.0,93710.0,2e-07]
[1741010498499,1.06109835,93711.0,93710.0,2e-07]
[1741010498722,1.05609835,93711.0,93710.0,2e-07]
[1741010499106,1.06309835,93711.0,93710.0,2e-07]
[1741010499908,1.05909835,93711.0,93710.0,2e-07]
[1741010500802,1.06609835,93711.0,93710.0,2e-07]
[1741010501005,1.11839835,93711.0,93710.0,2e-07]
[1741010501525,0.78737117,93703.0,93702.0,8.4e-07]
[1741010501729,1.95126658,93703.0,93702.0,8.4e-07]
[1741010502934,1.52536658,93703.0,93702.0,8.4e-07]
[1741010503115,1.68544658,93703.0,93702.0,8.4e-07]
[1741010503934,1.69244658,93703.0,93702.0,8.4e-07]
[1741010504201,1.61520658,93703.0,93702.0,8.4e-07]
[1741010504499,1.69944658,93703.0,93702.0,8.4e-07]
[1741010505464,1.62220658,93703.0,93702.0,8.4e-07]
[1741010505670,1.69944658,93703.0,93702.0,8.4e-07]
[1741010506389,1.99944658,93703.0,93702.0,8.4e-07]
[1741010507342,1.96207541,93703.0,93702.0,8.4e-07]
[1741010508277,1.88483541,93703.0,93702.0,8.4e-07]
[1741010508477,1.96207541,93703.0,93702.0,8.4e-07]
[1741010510119,2.07099185,93703.0,93702.0,8.4e-07]
[1741010510354,1.96173312,93703.0,93702.0,8.4e-07]
[1741010511025,1.957553,93703.0,93702.0,8.4e-07]
[1741010511799,1.633453,93703.0,93702.0,8.4e-07]
[1741010515422,1.556213,93703.0,93702.0,8.4e-07]
[1741010515627,1.633453,93703.0,93702.0,8.4e-07]
[1741010519964,0.160085,93700.0,93699.0,8.4e-07]
[1741010520138,0.47462585,93700.0,93699.0,8.4e-07]
[1741010520340,0.55913054,93700.0,93699.0,8.4e-07]
[1741010521003,0.48023054,93700.0,93699.0,8.4e-07]
[1741010521142,0.55747054,93700.0,93699.0,8.4e-07]
[1741010522414,0.56447054,93700.0,93699.0,8.4e-07]
[1741010522649,0.55747054,93700.0,93699.0,8.4e-07]
[1741010523039,0.56447054,93700.0,93699.0,8.4e-07]
[1741010523233,0.68038698,93700.0,93699.0,8.4e-07]
[1741010523437,0.67338698,93700.0,93699.0,8.4e-07]
[1741010523854,0.68038698,93700.0,93699.0,8.4e-07]
[1741010526426,0.66638698,93700.0,93699.0,8.4e-07]
[1741010526763,0.68038698,93700.0,93699.0,8.4e-07]
[1741010527400,0.68038698,93700.0,93689.0,0.00201]
[1741010527401,0.31454085,93699.0,93689.0,8.4e-07]
[1741010527613,0.47466185,93679.0,93678.0,8.4e-07]
[1741010527833,1.61235125,93679.0,93678.0,8.4e-07]
[1741010528029,1.61811001,93679.0,93678.0,8.4e-07]
[1741010528213,1.66411001,93679.0,93678.0,8.4e-07]
[1741010528404,1.77302645,93679.0,93678.0,8.4e-07]
[1741010528807,0.460143,93666.0,93665.0,6.4e-07]
[1741010529109,0.55763171,93666.0,93665.0,0.00040028]
[1741010530087,0.56463171,93666.0,93665.0,0.00040028]
[1741010530733,0.57163171,93666.0,93665.0,0.00040028]
[1741010531077,0.49443171,93666.0,93665.0,0.00040028]
[1741010531256,0.57163171,93666.0,93665.0,0.00040028]
[1741010531486,0.47989086,93666.0,93665.0,0.00040028]
[1741010531615,0.55709086,93666.0,93665.0,0.00040028]
[1741010531819,0.47989086,93666.0,93665.0,0.00040028]
[1741010532017,0.49443171,93666.0,93665.0,0.00040028]
[1741010532224,0.47989086,93666.0,93665.0,0.00040028]
[1741010533338,0.46589086,93666.0,93665.0,0.00040028]
[1741010533539,0.48043171,93666.0,93665.0,0.00040028]
[1741010533743,0.49143171,93666.0,93665.0,0.00040028]
[1741010534152,0.48443171,93666.0,93665.0,0.00040028]
[1741010534520,0.49043171,93666.0,93665.0,2.8e-07]
[1741010534928,0.48043171,93666.0,93665.0,2.8e-07]
[1741010535356,0.49443171,93666.0,93665.0,2.8e-07]
[1741010537623,0.47989086,93666.0,93665.0,2.8e-07]
[1741010538738,0.25709086,93666.0,93665.0,2.8e-07]
[1741010538943,0.17989086,93666.0,93665.0,2.8e-07]
[1741010539158,0.49443171,93666.0,93665.0,2.8e-07]
[1741010539512,0.01974786,93666.0,93665.0,2.8e-07]
[1741010539927,0.01974786,93666.0,93665.0,0.16014528]
[1741010540079,0.01974786,93666.0,93665.0,2.8e-07]
[1741010540287,0.014,93666.0,93665.0,2.8e-07]
[1741010540504,0.007,93666.0,93665.0,0.24194528]
[1741010540709,0.013,93666.0,93665.0,0.08180028]
[1741010540913,0.01864743,93666.0,93665.0,0.08180028]
[1741010541122,0.013,93666.0,93665.0,0.08180028]
[1741010541551,0.17872698,93666.0,93665.0,0.08180028]
[1741010541761,0.17172698,93666.0,93665.0,0.08180028]
[1741010542201,0.17672698,93666.0,93665.0,0.08180028]
[1741010543467,0.01658398,93666.0,93665.0,0.08180028]
[1741010543918,0.011,93666.0,93665.0,0.08180028]
[1741010544297,0.011,93666.0,93665.0,0.24194528]
[1741010544682,0.011,93666.0,93665.0,0.34194528]
[1741010544901,0.011,93666.0,93665.0,0.34228628]
[1741010545098,0.1713135,93666.0,93665.0,0.18214128]
[1741010545320,0.17691488,93666.0,93665.0,0.18214128]
[1741010545937,0.17691488,93666.0,93665.0,0.08214128]
[1741010546138,0.17691488,93666.0,93665.0,0.00034128]
[1741010546950,0.01677188,93666.0,93665.0,0.00034128]
[1741010547169,0.17691488,93666.0,93665.0,0.00034128]
[1741010548396,0.01677188,93666.0,93665.0,0.00034128]
[1741010548598,0.17691488,93666.0,93665.0,0.00034128]
[1741010548903,0.1713135,93666.0,93665.0,0.00034128]
[1741010549130,0.17691443,93666.0,93665.0,0.00034128]
[1741010551119,0.19145528,93666.0,93665.0,0.00034128]
[1741010551348,0.49145528,93666.0,93665.0,0.00034128]
[1741010552944,0.48645528,93666.0,93665.0,0.00034128]
[1741010553287,0.49345528,93666.0,93665.0,0.00034128]
[1741010553689,0.49345528,93666.0,93647.0,0.00201]
[1741010553690,0.39064085,93665.0,93657.0,2.8e-07]
[1741010553898,0.17471485,93648.0,93647.0,0.00179309]
[1741010554067,0.55187485,93648.0,93647.0,0.00179309]
[1741010554361,0.55745564,93648.0,93647.0,0.00189557]
[1741010555127,0.56445564,93648.0,93647.0,0.00189557]
[1741010555334,0.56445564,93648.0,93647.0,5.7e-07]
[1741010555970,0.6636132,93648.0,93647.0,5.7e-07]
[1741010556331,0.57045564,93648.0,93647.0,5.7e-07]
[1741010556531,0.56445564,93648.0,93647.0,5.7e-07]
[1741010557361,0.57145564,93648.0,93647.0,5.7e-07]
[1741010558688,0.57145564,93648.0,93647.0,0.00034157]
[1741010559087,0.55691479,93648.0,93647.0,0.00034157]
[1741010559966,0.47975479,93648.0,93647.0,0.00034157]
[1741010560170,0.01958079,93648.0,93647.0,0.00034157]
[1741010560391,0.17975479,93648.0,93647.0,0.00034157]
[1741010561003,0.01258079,93648.0,93647.0,0.00034157]
[1741010561259,0.01258079,93648.0,93647.0,0.44011657]
[1741010561661,0.007,93648.0,93647.0,0.27994157]
[1741010561863,0.005,93648.0,93647.0,0.27994157]
[1741010562004,0.009,93648.0,93647.0,0.27994157]
[1741010562265,0.01348216,93648.0,93647.0,0.27994157]
[1741010562505,0.00948216,93648.0,93647.0,0.27994157]
[1741010562707,0.007,93648.0,93647.0,0.27994157]
[1741010562933,0.01148216,93648.0,93647.0,0.27994157]
[1741010563215,0.007,93648.0,93647.0,0.44011657]
[1741010563442,0.213545,93657.0,93652.0,0.1]
[1741010563673,0.213545,93657.0,93647.0,0.34011657]
[1741010563674,0.09571816,93685.0,93664.0,0.1]
[1741010563915,0.09571816,93685.0,93665.0,0.255145]
[1741010564339,0.160124,93677.0,93665.0,0.255145]
[1741010564785,0.160123,93678.0,93665.0,0.255145]
[1741010564958,0.160123,93678.0,93665.0,0.251145]
[1741010565157,0.09571816,93685.0,93665.0,0.475145]
[1741010565603,0.160118,93681.0,93665.0,0.475145]
[1741010565900,0.09571816,93685.0,93665.0,0.215]
[1741010565901,0.213486,93683.0,93665.0,0.215]
[1741010566055,0.0051705,93666.0,93665.0,0.215]
[1741010566270,0.0001705,93666.0,93665.0,0.375145]
[1741010566445,0.0001705,93666.0,93665.0,0.475145]
[1741010566921,0.0061705,93666.0,93665.0,0.476145]
[1741010567435,0.0061705,93666.0,93665.0,0.215]
[1741010567436,0.0001705,93666.0,93665.0,0.215]
[1741010567616,0.0001705,93666.0,93665.0,0.475145]
[1741010567832,0.0001705,93666.0,93665.0,0.215]
[1741010568014,0.1603135,93666.0,93665.0,0.124]
[1741010568237,0.1603135,93666.0,93665.0,0.219]
[1741010568441,0.16592833,93666.0,93665.0,0.219]
[1741010568642,0.16592833,93666.0,93665.0,0.215]
[1741010568994,0.16592833,93666.0,93665.0,0.0455]
[1741010569436,0.00578533,93666.0,93665.0,0.0455]
[1741010569585,0.16592833,93666.0,93665.0,0.0455]
[1741010569992,0.00578533,93666.0,93665.0,0.045841]
[1741010570223,0.16592833,93666.0,93665.0,0.045841]
[1741010570626,0.16592833,93666.0,93665.0,0.000341]
[1741010570838,0.16592833,93666.0,93665.0,0.003341]
[1741010572044,0.00578533,93666.0,93665.0,0.003341]
[1741010572251,0.16592833,93666.0,93665.0,0.003341]
[1741010572600,0.00578533,93666.0,93665.0,0.003341]